Cogmind - Beta 15 @@@ ROGUE MODE // 2025.09.16 @ 10:46:56 Player: Petvaria Result: Destroyed by Alpha 7 with Multirail Performance ------------- Evolutions (7) 3500 Regions Visited (23) 4600 Robots Destroyed (184) 920 Value Destroyed (4879) 4879 Prototype IDs (20) 400 Alien Tech Used (18) 3600 Bonus (14053) 14053 TOTAL SCORE: 31952 Bonus ------- Triggered Max Security 1000 High Alert Combat Kills 872 Follower Combat Kills 819 Network Hubs Disabled 800 Registered with UFD 300 Met Optimus in HQ 500 Met Zhirov 300 Met Warlord at Base 500 MAIN.C Attacked Warlord 500 Built Enhanced Grunts 300 A7 Reached Mainframe 300 Read Decrypted Archives 300 Used Core Reset Matrix 3000 Integrated Exoskeleton 5000 Friendly Fire -438 Cogmind --------- Core Integrity 0/1550 Matter 300/300 Energy 198/200 System Corruption 6% Temperature Cool (0) Movement Walking (30) Location -3/Section 7 Parts ------- > --- POWER (1) -------- (None) > --- PROPULSION (3) --- Sigix Exoskeleton > --- UTILITY (3) ------ Spacefold Activator > --- WEAPON (2) ------- Sigix Sheargun Sigix Sheargun > --- INVENTORY (5) ---- Micro Antimatter Reactor Peak State ------------ > --- POWER ------------ (None) > --- PROPULSION ------- Sigix Exoskeleton > --- UTILITY ---------- Spacefold Activator > --- WEAPON ----------- Sigix Terminator > --- INVENTORY -------- Micro Antimatter Reactor [Rating: 204] Favorites ----------- Power Light Nuclear Core Engine Improved Ion Engine Power Core Light Nuclear Core Reactor Light Antimatter Reactor Propulsion Light Treads Treads Light Treads Leg Sigix Exoskeleton Flight Unit Improved Flight Unit Utility Hacking Suite Device Deep Structural Scanner Storage Large Storage Unit Processor Advanced Signal Interpreter Hackware Hacking Suite Protection Light Armor Plating Artifact Spacefold Activator Weapon Heavy Assault Rifle Energy Gun Small Laser Energy Cannon Matter Neutralizer Ballistic Gun Heavy Assault Rifle Launcher Rocket Launcher Special Weapon Advanced Remote Datajack Impact Weapon Makeshift Hammer Slashing Weapon Katana Piercing Weapon Lance Build | -11 -10 -9 -9 -8 -7 -7 -7 -7 -5 -5 -5 -5 -4 -4 -4 -4 -4 -4 -4 -4 -3 -3 -3 ------- Run | Yrd Mat Mat Min Mat Fac Sto Rec Scr Fac Upp Upp War Pro Fac Was Fac Ext Cet Arc Hub Res Qua Sec Slots Evolved 14 | . . 2 . 2 2 . . . 4 . . . . 2 . . . . . . 2 . . Power 1 | . . . . . . . . . . . . . . . . . . . . . 1 . . Propulsion 5 | . . 1 . 1 . . . . 1 . . . . 1 . . . . . . 1 . . Utility 8 | . . 1 . 1 2 . . . 3 . . . . 1 . . . . . . . . . Weapon . | . . . . . . . . . . . . . . . . . . . . . . . . Parts Attached 146 | 6 6 22 5 27 6 . . 6 5 . 4 4 1 6 2 8 2 5 . 7 4 14 6 Power 14 | 1 1 3 . 2 . . . . . . 1 . . . . 1 2 . . . 2 1 . Engine 4 | 1 . 3 . . . . . . . . . . . . . . . . . . . . . Core 6 | . 1 . . 2 . . . . . . 1 . . . . . 1 . . . 1 . . Reactor 4 | . . . . . . . . . . . . . . . . 1 1 . . . 1 1 . Propulsion 59 | 2 2 12 2 14 3 . . 2 . . 3 . . 2 . 5 . 3 . 3 2 3 1 Treads 31 | 2 2 11 2 13 . . . . . . . . . . . . . 1 . . . . . Leg . | . . . . . . . . . . . . . . . . . . . . . . . . Wheel . | . . . . . . . . . . . . . . . . . . . . . . . . Hover . | . . . . . . . . . . . . . . . . . . . . . . . . Flight 28 | . . 1 . 1 3 . . 2 . . 3 . . 2 . 5 . 2 . 3 2 3 1 Utility 44 | 1 2 4 1 6 2 . . 3 5 . . 1 . 3 2 2 . 1 . 3 . 5 3 Device 8 | . . . 1 . . . . 1 1 . . . . 1 1 1 . . . 1 . 1 . Storage 4 | 1 2 . . 1 . . . . . . . . . . . . . . . . . . . Processor 8 | . . . . . . . . 2 2 . . 1 . 1 1 . . . . . . 1 . Hackware 8 | . . . . . 2 . . . 2 . . . . 1 . 1 . . . . . 1 1 Protection 12 | . . 4 . 5 . . . . . . . . . . . . . 1 . 2 . . . Artifact 4 | . . . . . . . . . . . . . . . . . . . . . . 2 2 Weapon 29 | 2 1 3 2 5 1 . . 1 . . . 3 1 1 . . . 1 . 1 . 5 2 Energy Gun 6 | 1 1 . . . . . . . . . . 1 . . . . . 1 . . . . 2 Energy Cannon 3 | . . . . . . . . . . . . 1 . . . . . . . 1 . 1 . Ballistic Gun 10 | 1 . 3 1 4 . . . 1 . . . . . . . . . . . . . . . Ballistic Cannon . | . . . . . . . . . . . . . . . . . . . . . . . . Launcher 4 | . . . 1 1 . . . . . . . . . 1 . . . . . . . 1 . Special Weapon 1 | . . . . . . . . . . . . . . . . . . . . . . 1 . Impact Weapon 1 | . . . . . . . . . . . . . 1 . . . . . . . . . . Slashing Weapon 2 | . . . . . 1 . . . . . . . . . . . . . . . . 1 . Piercing Weapon 2 | . . . . . . . . . . . . 1 . . . . . . . . . 1 . Special Melee Weapon . | . . . . . . . . . . . . . . . . . . . . . . . . Unidentified Prototypes 24 | . . 1 1 1 . . . . . . . 3 . 1 1 . . 3 . . 1 10 2 Corrupted Parts 2 | . . . . . . . . . . . . . . 1 . . . 1 . . . . . System Corruption 5 | . . . . . . . . . . . . . . 2 . . . 3 . . . . . Parts Lost 57 | . 1 4 1 6 1 1 . . 1 . 4 . 1 5 1 2 6 2 . 8 6 5 2 Power 5 | . . 1 . . . . . . . . 1 . . . . . 1 . . 1 1 . . Propulsion 27 | . . 1 . 2 1 1 . . . . 2 . 1 4 . 2 2 2 . 1 3 3 2 Utility 18 | . . 1 1 2 . . . . 1 . . . . 1 1 . 2 . . 5 2 2 . Weapon 7 | . 1 1 . 2 . . . . . . 1 . . . . . 1 . . 1 . . . Highest Loss Streak 7 | . 1 3 1 3 1 1 . . 1 . 4 . 1 3 1 1 3 2 . 7 5 3 2 To Critical Strikes 2 | . . . . 1 . . . . . . . . . . . . . 1 . . . . . Average Backups 9 | 2 8 14 15 14 8 9 9 9 7 7 4 6 6 6 4 4 3 2 2 2 1 2 2 Power . | . 1 . . . 1 2 2 1 1 1 . . . . 1 1 . . . . . . . Propulsion 4 | 2 6 7 8 7 3 3 3 4 3 3 1 1 1 . . . 2 . . 1 . . . Utility 1 | . . 1 2 2 . . . 1 . . . . . . 1 . . 1 2 . . . . Weapon 3 | . . 5 5 4 3 4 4 3 3 3 3 5 5 4 2 2 1 . . . . 1 1 Tool/Special . | . . . . . . . . . . . . . . . . . . . . . . . . Unused Backups 17 | . 2 9 . . . . . 2 . . . . 1 1 . 1 . . . . . . 1 Power 4 | . 2 . . . . . . . . . . . . . . 1 . . . . . . 1 Propulsion 8 | . . 7 . . . . . 1 . . . . . . . . . . . . . . . Utility . | . . . . . . . . . . . . . . . . . . . . . . . . Weapon 5 | . . 2 . . . . . 1 . . . . 1 1 . . . . . . . . . Tool/Special . | . . . . . . . . . . . . . . . . . . . . . . . . Average Slot Usage (%) 76 | . 85 85 84 82 62 51 46 72 89 88 84 93 93 69 52 71 71 67 68 71 40 28 38 Engine 3 | . 6 10 11 2 . . . . . . . . . . . . . . . . . . . Core 3 | . 7 . . 6 5 . . 4 5 5 3 5 5 2 . 1 . . . . . . . Treads 15 | . 28 33 33 34 1 . . . . . . . . . . . . . . . . . . Flight 9 | . . . . . 27 23 15 25 23 23 24 29 23 12 5 14 13 9 10 14 14 7 6 Device 2 | . . . . . . . . 3 6 5 5 5 5 5 4 7 8 5 5 9 3 . . Storage 7 | . 14 11 11 9 7 7 7 7 5 5 5 5 5 3 . . . . . . . . . Processor 5 | . . . . . . . . 7 13 11 11 16 17 16 21 21 16 15 15 6 4 7 7 Hackware 9 | . . . . . 13 15 15 15 21 23 23 23 23 21 21 20 21 21 21 17 9 7 11 Protection 4 | . . 8 7 12 . . . . . . . . . . . . . 3 5 13 2 . . Energy Gun 2 | . 14 4 . . . . . . . . . . . . . . . . . . . . 2 Ballistic Gun 8 | . 14 17 12 15 . . . . 5 5 5 5 5 1 . . . . . . . . . Slashing Weapon 1 | . . . . . 4 5 7 7 5 5 1 . . . . . . . . . . . . Peak Build Rating 204 | 6 9 17 19 29 27 17 16 48 57 49 53 68 60 64 48 95 95 87 87 110 82 78 204 Average Rating 34 | 4 7 13 16 15 18 16 16 30 53 49 50 59 59 50 39 61 78 78 80 102 72 46 82 On Entrance 41 | . 6 9 17 12 28 14 16 16 48 49 49 53 60 60 39 35 95 65 80 79 74 35 53 Naked Turns . | . . . . . . . . . . . . . . . . . . . . . . . . Heaviest Build 49 | 11 27 46 49 39 17 12 12 19 20 19 19 17 20 20 1 26 26 30 37 38 25 18 21 Greatest Support 112 | 40 40 60 60 112 17 13 9 20 20 20 24 24 25 25 8 41 41 37 30 45 53 20 70 Greatest Overweight (x) 3 | . . . . . . 1 1 1 . . 1 . . 3 . . 2 . 1 2 . 3 . Average Overweight (x) . | . . . . . . . 1 . . . . . . . . . . . . . . . . Largest Inventory Capacity 15 | 8 15 15 15 15 15 10 10 10 10 10 10 10 10 10 5 5 5 5 5 5 5 5 5 Average Capacity 10 | 6 10 15 15 15 10 10 10 10 10 10 10 10 10 8 5 5 5 5 5 5 5 5 5 Most Carried 15 | 6 10 15 15 15 15 10 10 10 10 8 8 7 8 10 5 5 5 4 3 5 4 5 5 Average Carried 9 | 2 8 14 15 14 7 9 9 9 8 8 4 6 6 6 4 4 5 2 2 4 1 3 3 Final Capacity 15 | 8 15 15 15 15 10 10 10 10 10 10 10 10 10 5 5 5 5 5 5 5 5 5 5 Final Carried 15 | 6 10 15 15 15 10 9 10 10 8 8 4 7 6 5 5 5 5 3 2 1 2 4 1 Class Distribution -------------------- 28% | Mutant 23% | Hacker-Sprinter 21% | Hacker-Mutant 20% | Scavenger-Mutant 3% | Hacker-Scout Dominant Class ---------------- Mutant | -10/Materials Mutant | -9/Materials Mutant | -9/Mines Scavenger-Mutant | -8/Materials Scavenger-Sprinter | -7/Factory Hacker-Mutant | -7/Storage Hacker-Mutant | -7/Recycling Hacker-Sprinter | -7/Scraptown Hacker-Sprinter | -5/Factory Hacker-Sprinter | -5/Upper Caves Hacker-Sprinter | -5/Upper Caves Hacker-Sprinter | -5/Warlord Hacker-Mutant | -4/Proximity Caves Hacker-Mutant | -4/Factory Hacker-Scout | -4/Waste Hacker-Sprinter | -4/Factory Hacker-Mutant | -4/Extension Hacker-Mutant | -4/Cetus Hacker-Mutant | -4/Archives Hacker-Scout | -4/Hub_04(d) Hacker-Mutant | -3/Research Hacker-Sprinter | -3/Quarantine Hacker-Mutant | -3/Section 7 Resources | -11 -10 -9 -9 -8 -7 -7 -7 -7 -5 -5 -5 -5 -4 -4 -4 -4 -4 -4 -4 -4 -3 -3 -3 ----------- Run | Yrd Mat Mat Min Mat Fac Sto Rec Scr Fac Upp Upp War Pro Fac Was Fac Ext Cet Arc Hub Res Qua Sec Matter Collected 4162 | 238 165 652 537 1391 90 . . 83 . 45 35 40 . . . 31 336 74 . . 7 370 68 Remotely . | . . . . . . . . . . . . . . . . . . . . . . . . Salvage Created 6237 | . 921 1330 375 2022 137 . . . . . . . . 59 . 122 74 142 32 467 . 333 223 Parts 361 | . 51 84 36 124 4 . . . . . . . . 10 . 7 . 4 . 18 . 12 11 Haulers Intercepted 17 | . 2 5 . 6 3 . . . . . . . . . . . . . . 1 . . . Recyclers Shooed 17 | . 8 4 1 2 . . . . . . . . . . . 1 . . . . . 1 . Parts Field Recycled . | . . . . . . . . . . . . . . . . . . . . . . . . Retrieved Matter . | . . . . . . . . . . . . . . . . . . . . . . . . Parts Self-Destructed 3 | . . . . . . . . . . 2 1 . . . . . . . . . . . . Prevented . | . . . . . . . . . . . . . . . . . . . . . . . . Kills | -11 -10 -9 -9 -8 -7 -7 -7 -7 -5 -5 -5 -5 -4 -4 -4 -4 -4 -4 -4 -4 -3 -3 -3 ------- Run | Yrd Mat Mat Min Mat Fac Sto Rec Scr Fac Upp Upp War Pro Fac Was Fac Ext Cet Arc Hub Res Qua Sec Combat Hostiles Destroyed 98 | . 15 23 6 31 . . . . . . . . . 5 . 5 1 2 . 3 . . 7 Melee 1 | . . . . . . . . . . . . . . 1 . . . . . . . . . Guns 69 | . 15 23 2 28 . . . . . . . . . . . . . . . . . . 1 Cannons 2 | . . . . . . . . . . . . . . . . . . 2 . . . . . AOE 22 | . . . 4 3 . . . . . . . . . 4 . 5 . . . . . . 6 Classes Destroyed 17 | . 7 3 1 2 . . . . . . . . . . . . . . . 1 . . 3 Worker 27 | . 1 1 6 9 . . . . . . . . . . . . . . . 7 . 3 . Builder 4 | . . . 1 2 . . . . . . . . . . . . . . . . . 1 . Tunneler 3 | . . 1 1 1 . . . . . . . . . . . . . . . . . . . Hauler 17 | . 2 5 . 6 3 . . . . . . . . . . . . . . 1 . . . Recycler 16 | . 4 2 3 4 . . . . . . . . . . . . . . . . . 2 1 Mechanic 2 | . . . . 2 . . . . . . . . . . . . . . . . . . . Operator 10 | . 1 2 . 4 . . . . . . . . . . . 2 . . . 1 . . . Watcher 4 | . 1 2 . 1 . . . . . . . . . . . . . . . . . . . Swarmer 38 | . 6 8 4 10 . . . . . . . . . 5 . 5 . . . . . . . Grunt 31 | . 9 10 . 11 . . . . . . . . . . . . 1 . . . . . . Duelist 1 | . . 1 . . . . . . . . . . . . . . . . . . . . . Protector 1 | . . . . . . . . . . . . . . . . . . . . 1 . . . Researcher 2 | . . . . . . . . . . . . . . . . . . . . . . . 2 Sentry 15 | . . 4 2 7 . . . . . . . . . . . . . . . 2 . . . Hunter 3 | . . . . 3 . . . . . . . . . . . . . . . . . . . Programmer 6 | . . . . . . . . . . . . . . . . . . . . . . . 6 Cetus Guard 2 | . . . . . . . . . . . . . . . . . . 2 . . . . . Executioner 1 | . . . . . . . . . . . . . . . . . . . . . . . 1 Thug 1 | . . . . . . . . . . . . . . . . . . 1 . . . . . Best Kill Streak 9 | . 3 6 6 9 1 . . . . . . . . 4 . 5 1 2 . 7 . 4 9 Combat Bots Only 7 | . 2 5 3 7 . . . . . . . . . 4 . 5 1 2 . 2 . . 7 Max Kills in Single Turn 8 | . 1 1 2 2 1 . . . . . . . . 2 . 4 1 1 . 4 . 1 8 Gunslinging . | . . . . . . . . . . . . . . . . . . . . . . . . Exploded 6 | . . . 2 2 . . . . . . . . . 2 . 4 . . . . . . 6 Melee 1 | . . . . . . . . . . . . . . 1 . . . . . . . . . Uniques/NPCs Destroyed . | . . . . . . . . . . . . . . . . . . . . . . . . Combat | -11 -10 -9 -9 -8 -7 -7 -7 -7 -5 -5 -5 -5 -4 -4 -4 -4 -4 -4 -4 -4 -3 -3 -3 -------- Run | Yrd Mat Mat Min Mat Fac Sto Rec Scr Fac Upp Upp War Pro Fac Was Fac Ext Cet Arc Hub Res Qua Sec Hostile Shots Fired 1007 | . 78 129 16 188 20 1 . 5 19 . 22 . 4 28 1 10 77 8 4 133 30 72 162 Missed 383 | . 16 29 5 39 12 . . 3 11 . 12 . 2 10 . 4 44 2 1 64 14 32 83 Hits 624 | . 62 100 11 149 8 1 . 2 8 . 10 . 2 18 1 6 33 6 3 69 16 40 79 Melee 4 | . . 2 . . . . . . . . . . . . 1 . . . . . 1 . . Projectile 620 | . 62 98 11 149 8 1 . 2 8 . 10 . 2 18 . 6 33 6 3 69 15 40 79 Critical Strikes 38 | . . 4 1 5 . . . 1 1 . . . . 2 . . 2 1 . 8 4 3 6 Part Disruptions 1 | . . . . . . . . . . . . . . . . . . . . . . 1 . Damage Taken 12068 | . 763 1086 608 2115 79 13 . 33 219 . 215 . 73 366 58 151 760 187 274 2284 433 833 1518 Core 3201 | . 93 110 64 287 . . . 22 124 . 79 . 38 206 58 66 215 39 71 308 60 501 860 Absorbed by Shields 141 | . . . . . . . . . . . . . . . . 18 55 47 . 21 . . . Redirected to Shielding 39 | . . . . 39 . . . . . . . . . . . . . . . . . . . Ignored by Resistances 353 | . . . . . . . . . . . . . . . . . . . . . . . 353 Regen/Repaired (Parts) 26 | . . . . . . . . . . . . 10 . . . . . . . . . 16 . Core Remaining (%) 64 | 100 62 . 56 47 . . . 96 . . . . 75 . . . . . . 16 . . . Volleys Fired 463 | . 87 128 57 146 . . . 2 . . . . . 3 . 3 . 10 3 1 2 14 7 Largest 2 | . 2 2 2 2 . . . 1 . . . . . 1 . 1 . 1 1 1 1 1 2 Hottest 200 | . 70 60 46 56 . . . 30 . . . . . 39 . 39 . 50 50 105 105 105 200 Shots Fired 807 | . 173 254 64 264 . . . 2 . . . . . 3 . 3 . 12 3 1 2 13 13 Gun 695 | . 173 254 14 240 . . . 2 . . . . . . . . . . . . . . 12 Cannon 31 | . . . . . . . . . . . . . . . . . . 12 3 1 2 13 . Launcher 81 | . . . 50 24 . . . . . . . . . 3 . 3 . . . . . . 1 Special . | . . . . . . . . . . . . . . . . . . . . . . . . Kinetic 533 | . 87 190 14 240 . . . 2 . . . . . . . . . . . . . . . Thermal 167 | . 86 64 . . . . . . . . . . . . . . . . . 1 2 13 1 Explosive 80 | . . . 50 24 . . . . . . . . . 3 . 3 . . . . . . . Electromagnetic . | . . . . . . . . . . . . . . . . . . . . . . . . Slashing 12 | . . . . . . . . . . . . . . . . . . . . . . . 12 Entropic 15 | . . . . . . . . . . . . . . . . . . 12 3 . . . . Robot Hit Streak 16 | . 11 14 10 16 . . . . . . . . . . . . . 10 1 . . . 3 Robot Miss Streak 5 | . 3 5 4 3 . . . . . . . . . . . 2 . 3 2 . 2 . 3 Penetration Max . | . . . . . . . . . . . . . . . . . . . . . . . . Secondary Targets 4 | . 1 2 . 1 . . . . . . . . . . . . . . . . . . . Max Gunslinging Chain 1 | . 1 1 . 1 . . . . . . . . . . . . . . . . . . . Shots Hit Robots 492 | . 104 156 15 168 14 . . . . . . . . 1 . 2 2 10 2 . . 11 7 Core Hits 292 | . 49 66 24 93 2 . . . . . . . . 6 . 5 . 5 2 30 . 5 5 Critical Kills 2 | . . 1 . 1 . . . . . . . . . . . . . . . . . . . Critical Parts Destroyed 6 | . 1 1 . 2 . . . . . . . . . 1 . . 1 . . . . . . Critical Strikes 16 | . 2 2 . 3 3 . . . . . . . . 1 . . 1 2 . . . 1 1 Burn 1 | . 1 . . . . . . . . . . . . . . . . . . . . . . Destroy 6 | . 1 2 . 3 . . . . . . . . . . . . . . . . . . . Smash 2 | . . . . . . . . . . . . . . 1 . . 1 . . . . . . Sever 3 | . . . . . 3 . . . . . . . . . . . . . . . . . . Impale 2 | . . . . . . . . . . . . . . . . . . . . . . 1 1 Sunder 2 | . . . . . . . . . . . . . . . . . . 2 . . . . . Melee Attacks 148 | . . . . . 21 11 3 15 7 5 . . 11 15 . 6 5 5 1 9 . 26 8 Impact 52 | . . . . . . . . . . . . . 11 15 . 6 5 5 1 9 . . . Slashing 65 | . . . . . 21 11 3 15 7 5 . . . . . . . . . . . 3 . Piercing 31 | . . . . . . . . . . . . . . . . . . . . . . 23 8 Sneak Attacks 12 | . . . . . 3 . . . . . . . . . . 1 1 . . . . 6 1 Combat Hostiles 1 | . . . . . . . . . . . . . . . . . 1 . . . . . . Follow-up Attacks . | . . . . . . . . . . . . . . . . . . . . . . . . Damage Inflicted 21208 | . 1093 1848 991 3464 601 . . . . . . . . 304 . 634 153 773 260 1779 3 729 8576 Guns 6099 | . 1093 1848 160 2629 . . . . . . . . . . . . . . . . . . 369 Cannons 919 | . . . . . . . . . . . . . . . . . . 773 146 . . . . Explosions 12290 | . . . 831 835 . . . . . . . . . 257 . 473 . . . 1779 . . 8115 Melee 1897 | . . . . . 601 . . . . . . . . 47 . 161 153 . 114 . . 729 92 Ramming 3 | . . . . . . . . . . . . . . . . . . . . . 3 . . Kinetic 4646 | . 410 1447 160 2629 . . . . . . . . . . . . . . . . . . . Thermal 9279 | . 683 401 . 80 . . . . . . . . . . . . . . . . . . 8115 Explosive 2316 | . . . 831 755 . . . . . . . . . 257 . 473 . . . . . . . Electromagnetic 1779 | . . . . . . . . . . . . . . . . . . . . 1779 . . . Impact 475 | . . . . . . . . . . . . . . 47 . 161 153 . 114 . . . . Slashing 1070 | . . . . . 601 . . . . . . . . . . . . . . . . 100 369 Piercing 721 | . . . . . . . . . . . . . . . . . . . . . . 629 92 Entropic 919 | . . . . . . . . . . . . . . . . . . 773 146 . . . . Highest Corruption 36 | . . . . . . . . . . . . . . 2 10 10 11 14 14 36 . 2 6 Average Corruption 8 | . . . . . . . . . . . . . . 2 8 10 10 13 14 18 . 1 3 Corruption Purged . | . . . . . . . . . . . . . . . . . . . . . . . . Corruption Blocked . | . . . . . . . . . . . . . . . . . . . . . . . . Effects 77 | . . . . . . . . . . . . . . 4 3 7 26 12 3 14 . 5 3 Message Errors 16 | . . . . . . . . . . . . . . . 1 2 7 2 . 2 . 1 1 Matter Fused 19 | . . . . . . . . . . . . . . 2 . 2 7 2 1 2 . 3 . Heat Flow Errors 9 | . . . . . . . . . . . . . . 1 1 . 2 1 1 2 . . 1 Energy Discharges 6 | . . . . . . . . . . . . . . . . . 5 1 . . . . . Parts Rejected 2 | . . . . . . . . . . . . . . . . . . . . 2 . . . Parts Fused 1 | . . . . . . . . . . . . . . . . . . 1 . . . . . Data Loss (minor) 5 | . . . . . . . . . . . . . . 1 . 1 2 . . . . . 1 Data Loss (major) 3 | . . . . . . . . . . . . . . . . . 1 1 . 1 . . . Misfires 2 | . . . . . . . . . . . . . . . . . . 2 . . . . . Alerts 3 | . . . . . . . . . . . . . . . . 1 . 2 . . . . . Misdirections 10 | . . . . . . . . . . . . . . . 1 1 2 . 1 5 . . . Weapon Failures 1 | . . . . . . . . . . . . . . . . . . . . . . 1 . Overload Shots . | . . . . . . . . . . . . . . . . . . . . . . . . Overflow Damage 2075 | . . . 10 43 36 . . . . . . . . 63 . 157 54 . 84 44 . 219 1365 Projectiles . | . . . . . . . . . . . . . . . . . . . . . . . . Explosions 1350 | . . . 10 43 . . . . . . . . . 16 . 26 . . . 44 . . 1211 Melee 725 | . . . . . 36 . . . . . . . . 47 . 131 54 . 84 . . 219 154 Knockbacks 2 | . . . . . . . . . . . . . . . . 1 . . 1 . . . . Impact 2 | . . . . . . . . . . . . . . . . 1 . . 1 . . . . Kinetic . | . . . . . . . . . . . . . . . . . . . . . . . . Secondary . | . . . . . . . . . . . . . . . . . . . . . . . . Self-Inflicted Damage 661 | . . . 199 51 . . . . . . . . . . . 69 . . . 341 1 . . Shots 12 | . . . 6 1 . . . . . . . . . . . 1 . . . 4 . . . Rammed 1 | . . . . . . . . . . . . . . . . . . . . . 1 . . Targets Rammed 1 | . . . . . . . . . . . . . . . . . . . . . 1 . . Kicked . | . . . . . . . . . . . . . . . . . . . . . . . . Crushed . | . . . . . . . . . . . . . . . . . . . . . . . . Highest Temperature 330 | . 132 204 26 330 . . . 17 11 . . . . 151 135 . 265 76 249 267 32 . 78 Average Temperature 45 | . 41 40 15 28 . . . 9 11 . . . . 69 70 . 125 29 132 114 25 . 57 Received Heat Transfer 2112 | . 294 366 54 693 33 9 . 37 54 . 45 . 9 84 . . 50 . 21 72 57 120 114 Effects 1 | . . 1 . . . . . . . . . . . . . . . . . . . . . Energy Bleed 1 | . . 1 . . . . . . . . . . . . . . . . . . . . . Siege Activations . | . . . . . . . . . . . . . . . . . . . . . . . . Martial Activations . | . . . . . . . . . . . . . . . . . . . . . . . . Shielding Activations . | . . . . . . . . . . . . . . . . . . . . . . . . Robots Disrupted . | . . . . . . . . . . . . . . . . . . . . . . . . Combat Hostiles . | . . . . . . . . . . . . . . . . . . . . . . . . Robots Corrupted 8 | . . . . . . . . . . . . . . . . 2 1 . 1 4 . . . Combat Hostiles 4 | . . . . . . . . . . . . . . . . . 1 . . 3 . . . Parts Fried 17 | . . . . . . . . . . . . . . . . 6 2 . 2 7 . . . Impact Corruptions 11 | . . . . . . . . . . . . . . 1 . 5 2 . 3 . . . . Robots Melted . | . . . . . . . . . . . . . . . . . . . . . . . . Combat Hostiles . | . . . . . . . . . . . . . . . . . . . . . . . . Parts Melted 2 | . . 2 . . . . . . . . . . . . . . . . . . . . . Heat Transferred 2849 | . 1754 925 . 50 . . . . . . . . . . . . . . . . . . 120 Parts Sabotaged . | . . . . . . . . . . . . . . . . . . . . . . . . Parts Stolen . | . . . . . . . . . . . . . . . . . . . . . . . . Parts Stripped . | . . . . . . . . . . . . . . . . . . . . . . . . Power Chain Reactions . | . . . . . . . . . . . . . . . . . . . . . . . . Alert | -11 -10 -9 -9 -8 -7 -7 -7 -7 -5 -5 -5 -5 -4 -4 -4 -4 -4 -4 -4 -4 -3 -3 -3 ------- Run | Yrd Mat Mat Min Mat Fac Sto Rec Scr Fac Upp Upp War Pro Fac Was Fac Ext Cet Arc Hub Res Qua Sec Maximum Alert Level 5 | . . . 1 2 1 . . . . . . . . 1 . . . . 1 4 3 1 5 Low Security (%) 66 | 100 100 100 58 1 . 100 100 . 100 . . . . 33 100 100 100 100 79 51 . 44 87 Level 1 15 | . . . 41 17 100 . . . . . . . . 66 . . . . 20 2 . 55 . Level 2 16 | . . . . 80 . . . . . . . . . . . . . . . 22 78 . . Level 3 . | . . . . . . . . . . . . . . . . . . . . 7 21 . . Level 4 . | . . . . . . . . . . . . . . . . . . . . 16 . . . Level 5 . | . . . . . . . . . . . . . . . . . . . . . . . . High Security . | . . . . . . . . . . . . . . . . . . . . . . . . Max Security . | . . . . . . . . . . . . . . . . . . . . . . . 12 Peak Influence 2646 | . 96 131 383 660 296 169 56 . 50 . . . . 304 90 166 178 190 214 1465 789 332 2646 Initial 768 | . . 14 49 131 291 146 54 . . . . . . . 90 35 68 76 32 32 768 239 30 Average 193 | . 32 64 207 493 266 151 22 . 23 . . . . 176 78 127 75 132 107 425 528 151 368 Influence Increases 8781 | . 456 696 640 1271 183 44 2 . 87 . 217 . 15 444 . 215 578 154 192 1664 118 414 1391 Destroy 0b10 Robot/C 2360 | . 300 460 120 620 . . . . . . 20 . . 100 . 100 280 80 60 40 . . 180 Destroy 0b10 Robot/NC 430 | . 45 65 55 145 15 . . . . . . . . . . 5 5 5 5 50 . 30 5 Destroy Leader 484 | . 66 114 10 174 6 . . . . . . . . 10 . 10 42 . . 22 . . 30 Allied During Kill 222 | . . . . . . . . . . . 2 . . . . . 104 51 65 . . . . Successful Hack 213 | . . 12 . 6 26 4 . . . . . . . 18 . 34 . . . 8 24 45 36 Disable Machine 1020 | . . . 75 90 . . . . 15 . . . . 75 . . . . 30 465 . 120 150 Destroy Structure 2372 | . . . 380 191 1 10 2 . 12 . . . . 136 . 66 12 18 32 734 4 24 750 Partial Spotted 195 | . . . . 30 15 30 . . 15 . . . . 15 . . 15 . . 15 . 30 30 Lose Combat Pursuer 1485 | . 45 45 . 15 120 . . . 45 . 195 . 15 90 . . 120 . . 330 90 165 210 Influence Decreases 7593 | . 420 603 432 966 501 228 142 . 50 37 62 155 15 186 208 125 580 212 178 293 1157 785 258 Entered New Map 2429 | . . 22 80 206 351 178 86 . . 15 . 155 . . 168 15 72 62 48 62 697 187 25 Time Decay 3366 | . 410 551 342 550 140 30 20 . 40 22 40 . 15 136 30 90 240 130 30 102 90 248 110 Lost Part 490 | . 10 30 10 60 10 10 . . 10 . 10 . . 50 10 20 30 20 . 80 60 50 20 Lost Ally 362 | . . . . . . 10 . . . . 12 . . . . . 220 . 100 10 10 . . Purge Threat 946 | . . . . 150 . . 36 . . . . . . . . . 18 . . 39 300 300 103 Squads Dispatched 37 | . 3 3 . 4 3 . . . . . 1 . . 1 . . . . . 8 2 2 10 Investigation 3 | . 2 1 . . . . . . . . . . . . . . . . . . . . . Extermination 9 | . . . . . 2 . . . . . . . . 1 . . . . . 1 1 2 2 Reinforcement 17 | . 1 2 . 4 1 . . . . . . . . . . . . . . 6 1 . 2 Assault 7 | . . . . . . . . . . . 1 . . . . . . . . . . . 6 Garrison 1 | . . . . . . . . . . . . . . . . . . . . 1 . . . Intercept . | . . . . . . . . . . . . . . . . . . . . . . . . Searches Triggered . | . . . . . . . . . . . . . . . . . . . . . . . . Construction Impeded 2 | . . . . 1 . . . . . . . . . . . . . . . 1 . . . Haulers Reinforced 1 | . . . . . 1 . . . . . . . . . . . . . . . . . . Active Scanning Responses . | . . . . . . . . . . . . . . . . . . . . . . . . Cargo Convoy Interrupts . | . . . . . . . . . . . . . . . . . . . . . . . . Stealth | -11 -10 -9 -9 -8 -7 -7 -7 -7 -5 -5 -5 -5 -4 -4 -4 -4 -4 -4 -4 -4 -3 -3 -3 --------- Run | Yrd Mat Mat Min Mat Fac Sto Rec Scr Fac Upp Upp War Pro Fac Was Fac Ext Cet Arc Hub Res Qua Sec Distress Signals 25 | . 2 3 3 4 1 1 . . 1 . . 2 . 1 . . 2 1 . 2 1 . 1 Communications Jammed . | . . . . . . . . . . . . . . . . . . . . . . . . Distress Signals . | . . . . . . . . . . . . . . . . . . . . . . . . Times Spotted 352 | . 29 47 6 53 9 5 . 7 11 . 15 7 1 11 6 7 25 5 6 42 18 20 22 Peak Tracking Total 22 | . 4 5 2 5 6 4 . 4 9 . 13 5 1 8 6 5 7 5 6 22 10 7 13 Tactical Retreats 40 | . 2 2 . 1 2 . . . 2 . 3 . 1 4 . . 5 . . 5 2 5 6 Traps | -11 -10 -9 -9 -8 -7 -7 -7 -7 -5 -5 -5 -5 -4 -4 -4 -4 -4 -4 -4 -4 -3 -3 -3 ------- Run | Yrd Mat Mat Min Mat Fac Sto Rec Scr Fac Upp Upp War Pro Fac Was Fac Ext Cet Arc Hub Res Qua Sec Traps Triggered 14 | . 5 1 . 1 . . . . 1 . . . . 1 . 1 3 . . 1 . . . Indirectly . | . . . . . . . . . . . . . . . . . . . . . . . . Trap Hack Attempts . | . . . . . . . . . . . . . . . . . . . . . . . . Triggered . | . . . . . . . . . . . . . . . . . . . . . . . . Disarmed . | . . . . . . . . . . . . . . . . . . . . . . . . Reprogrammed . | . . . . . . . . . . . . . . . . . . . . . . . . Reused . | . . . . . . . . . . . . . . . . . . . . . . . . Traps Extracted . | . . . . . . . . . . . . . . . . . . . . . . . . Installed . | . . . . . . . . . . . . . . . . . . . . . . . . Triggered . | . . . . . . . . . . . . . . . . . . . . . . . . Machines | -11 -10 -9 -9 -8 -7 -7 -7 -7 -5 -5 -5 -5 -4 -4 -4 -4 -4 -4 -4 -4 -3 -3 -3 ---------- Run | Yrd Mat Mat Min Mat Fac Sto Rec Scr Fac Upp Upp War Pro Fac Was Fac Ext Cet Arc Hub Res Qua Sec Machines Disabled 77 | . . . 5 6 . . . 3 1 . . . . 5 . . . 1 2 31 . 8 15 Max in Single Turn 15 | . . . 1 2 . . . 1 1 . . . . 3 . . . 1 1 15 . 1 10 Garrison Access 3 | . . . . . . . . . . . . . . 2 . . . . . . . 1 . Network Hub 4 | . . . . . . . . . . . . . . . . . . . . 4 . . . Machines Repaired . | . . . . . . . . . . . . . . . . . . . . . . . . Machines Dismantled . | . . . . . . . . . . . . . . . . . . . . . . . . Machines Sabotaged . | . . . . . . . . . . . . . . . . . . . . . . . . Overloaded Fab Kills . | . . . . . . . . . . . . . . . . . . . . . . . . Hacking | -11 -10 -9 -9 -8 -7 -7 -7 -7 -5 -5 -5 -5 -4 -4 -4 -4 -4 -4 -4 -4 -3 -3 -3 --------- Run | Yrd Mat Mat Min Mat Fac Sto Rec Scr Fac Upp Upp War Pro Fac Was Fac Ext Cet Arc Hub Res Qua Sec Machines Accessed 63 | . 1 2 . 3 3 2 1 3 . 2 . 1 . 5 . 5 8 2 1 8 3 7 6 Terminals 51 | . 1 2 . 2 2 2 1 . . . . . . 3 . 5 8 2 . 8 3 6 6 Fabricators . | . . . . . . . . . . . . . . . . . . . . . . . . Repair Stations . | . . . . . . . . . . . . . . . . . . . . . . . . Recycling Units . | . . . . . . . . . . . . . . . . . . . . . . . . Scanalyzers . | . . . . . . . . . . . . . . . . . . . . . . . . Garrison Access 5 | . . . . 1 1 . . . . . . . . 2 . . . . . . . 1 . Total Hacks 186 | . 1 3 . 7 7 3 1 26 . 2 . 1 . 8 . 8 11 2 25 19 14 26 22 Successful 122 | . 1 2 . 2 2 2 1 26 . 2 . 1 . 4 . 5 7 2 25 12 5 8 15 Failed 64 | . . 1 . 5 5 1 . . . . . . . 4 . 3 4 . . 7 9 18 7 Catastrophic 6 | . . . . . . 1 . . . . . . . 2 . 1 . . . . 1 1 . Database Lockouts . | . . . . . . . . . . . . . . . . . . . . . . . . Manual 98 | . 1 3 . 4 4 4 1 . . . . . . 6 . 7 4 2 . 13 11 20 18 Terminals 124 | . 1 3 . 4 5 3 1 . . . . . . 6 . 8 11 2 . 19 14 25 22 Fabricators . | . . . . . . . . . . . . . . . . . . . . . . . . Repair Stations . | . . . . . . . . . . . . . . . . . . . . . . . . Recycling Units . | . . . . . . . . . . . . . . . . . . . . . . . . Scanalyzers . | . . . . . . . . . . . . . . . . . . . . . . . . Garrison Access 8 | . . . . 3 2 . . . . . . . . 2 . . . . . . . 1 . Terminal Hacks 99 | . . . . 1 1 1 1 26 . 2 . 1 . 2 . 4 6 2 25 9 4 4 10 Record 54 | . . . . . . . . 25 . . . . . . . . . 1 25 3 . . . Open Door 12 | . . . . . . . . . . 2 . 1 . . . 1 5 1 . . . 1 1 Level Access Points 2 | . . . . . 1 . . . . . . . . . . . . . . 1 . . . Branch Access Points 2 | . . . . . . 1 . . . . . . . . . . . . . . 1 . . Emergency Access Points 1 | . . . . . . . . . . . . . . . . . . . . 1 . . . Unreport Threat 11 | . . . . 1 . . 1 . . . . . . . . . 1 . . 2 2 2 2 Locate Traps 8 | . . . . . . . . . . . . . . 2 . 3 . . . . 1 . 2 Recall Extermination 1 | . . . . . . . . . . . . . . . . . . . . . . 1 . Registered Components 1 | . . . . . . . . . . . . . . . . . . . . 1 . . . Zone Layout 5 | . . . . . . . . . . . . . . . . . . . . 1 . . 4 Proto ID Catalog 1 | . . . . . . . . 1 . . . . . . . . . . . . . . . Activate Exoskeleton 1 | . . . . . . . . . . . . . . . . . . . . . . . 1 Fabricator Hacks . | . . . . . . . . . . . . . . . . . . . . . . . . Repair Station Hacks . | . . . . . . . . . . . . . . . . . . . . . . . . Recycling Unit Hacks . | . . . . . . . . . . . . . . . . . . . . . . . . Scanalyzer . | . . . . . . . . . . . . . . . . . . . . . . . . Garrison Access Hacks 3 | . . . . . . . . . . . . . . 2 . . . . . . . 1 . Seal Access 3 | . . . . . . . . . . . . . . 2 . . . . . . . 1 . Unauthorized Hacks 20 | . 1 2 . 1 1 1 . . . . . . . . . 1 1 . . 3 1 3 5 Terminals 20 | . 1 2 . 1 1 1 . . . . . . . . . 1 1 . . 3 1 3 5 Assimilate 10 | . . . . . . 1 . . . . . . . . . 1 1 . . 3 1 . 3 Botnet 5 | . . . . . . . . . . . . . . . . . . . . . . 3 2 Operators 5 | . 1 2 . 1 1 . . . . . . . . . . . . . . . . . . Fabricators . | . . . . . . . . . . . . . . . . . . . . . . . . Repair Stations . | . . . . . . . . . . . . . . . . . . . . . . . . Recycling Units . | . . . . . . . . . . . . . . . . . . . . . . . . Scanalyzers . | . . . . . . . . . . . . . . . . . . . . . . . . Garrison Access . | . . . . . . . . . . . . . . . . . . . . . . . . Data Cores Recovered 2 | . . . . 1 . . . . . . . . . . . 1 . . . . . . . Used 1 | . . . . 1 . . . . . . . . . . . . . . . . . . . Hacking Detections 34 | . 1 1 . 2 3 2 1 . . . . . . 2 . 1 4 1 . 6 3 5 2 Full Trace Events 1 | . . . . 1 . . . . . . . . . . . . . . . . . . . Feedback Events . | . . . . . . . . . . . . . . . . . . . . . . . . Feedback Blocked . | . . . . . . . . . . . . . . . . . . . . . . . . Robot Schematics Acquired . | . . . . . . . . . . . . . . . . . . . . . . . . Robots Built . | . . . . . . . . . . . . . . . . . . . . . . . . Authchips . | . . . . . . . . . . . . . . . . . . . . . . . . Time . | . . . . . . . . . . . . . . . . . . . . . . . . Total Robot Build Rating . | . . . . . . . . . . . . . . . . . . . . . . . . Part Schematics Acquired . | . . . . . . . . . . . . . . . . . . . . . . . . Parts Built . | . . . . . . . . . . . . . . . . . . . . . . . . Authchips . | . . . . . . . . . . . . . . . . . . . . . . . . Time . | . . . . . . . . . . . . . . . . . . . . . . . . Total Part Build Rating . | . . . . . . . . . . . . . . . . . . . . . . . . Parts Repaired . | . . . . . . . . . . . . . . . . . . . . . . . . Time . | . . . . . . . . . . . . . . . . . . . . . . . . Parts Recycled . | . . . . . . . . . . . . . . . . . . . . . . . . Recycled Matter . | . . . . . . . . . . . . . . . . . . . . . . . . Retrieved Matter . | . . . . . . . . . . . . . . . . . . . . . . . . Retrieved Components . | . . . . . . . . . . . . . . . . . . . . . . . . Parts Scanalyzed . | . . . . . . . . . . . . . . . . . . . . . . . . Part Schematics Acquired . | . . . . . . . . . . . . . . . . . . . . . . . . Parts Damaged . | . . . . . . . . . . . . . . . . . . . . . . . . Bothacking | -11 -10 -9 -9 -8 -7 -7 -7 -7 -5 -5 -5 -5 -4 -4 -4 -4 -4 -4 -4 -4 -3 -3 -3 ------------ Run | Yrd Mat Mat Min Mat Fac Sto Rec Scr Fac Upp Upp War Pro Fac Was Fac Ext Cet Arc Hub Res Qua Sec Used RIF Installer . | . . . . . . . . . . . . . . . . . . . . . . . . Robots Hacked . | . . . . . . . . . . . . . . . . . . . . . . . . Non-combat . | . . . . . . . . . . . . . . . . . . . . . . . . Combat . | . . . . . . . . . . . . . . . . . . . . . . . . Robot Hacks Applied . | . . . . . . . . . . . . . . . . . . . . . . . . Relay Couplers Released . | . . . . . . . . . . . . . . . . . . . . . . . . Fabnet Peak Effective % . | . . . . . . . . . . . . . . . . . . . . . . . . Robots Rewired 10 | . . . . . . . . . . . . . . . . . 10 . . . . . . Allies Hacked 3 | . . . . . . . . . . . . . . . . . 3 . . . . . . Hacks Repelled . | . . . . . . . . . . . . . . . . . . . . . . . . Allies | -11 -10 -9 -9 -8 -7 -7 -7 -7 -5 -5 -5 -5 -4 -4 -4 -4 -4 -4 -4 -4 -3 -3 -3 -------- Run | Yrd Mat Mat Min Mat Fac Sto Rec Scr Fac Upp Upp War Pro Fac Was Fac Ext Cet Arc Hub Res Qua Sec Total Allies 28 | . . . . . . 1 . . . . . . . . . 1 19 5 . 1 1 . . Largest Group 9 | . . . . . . 1 . . . . . . . . . 1 7 9 9 1 1 . . Highest-Rated Group 743 | . . . . . . 10 . . . . . . . . . 45 402 743 743 26 10 . . Highest-Rated Ally 159 | . . . . . . 10 . . . . . . . . . 45 159 159 153 26 10 . . Total Orders . | . . . . . . . . . . . . . . . . . . . . . . . . Ally Attacks 129 | . . . . . . . . . . . 4 . . . . . 99 16 10 . . . . Total Damage 5052 | . . . . . . . . . . . 212 . . . . . 2943 867 1030 . . . . Kills 22 | . . . . . . . . . . . 1 . . . . . 14 4 3 . . . . Allies Corrupted 1 | . . . . . . . . . . . . . . . . 1 . . . . . . . Allies Melted 4 | . . . . . . . . 2 . . . 1 . . . . 1 . . . . . . Turrets Deployed 1 | . . . . . . . . . . . 1 . . . . . . . . . . . . Intel | -11 -10 -9 -9 -8 -7 -7 -7 -7 -5 -5 -5 -5 -4 -4 -4 -4 -4 -4 -4 -4 -3 -3 -3 ------- Run | Yrd Mat Mat Min Mat Fac Sto Rec Scr Fac Upp Upp War Pro Fac Was Fac Ext Cet Arc Hub Res Qua Sec Active Infowar (turns) 3981 | . . . . . . . . 523 114 137 77 1126 205 322 60 192 657 266 73 225 . 4 . Sensors 247 | . . . . . . . . . 18 . . . . 34 . . . . . 191 . 4 . Structural 3603 | . . . . . . . . 523 114 137 77 1126 205 181 . 163 513 266 73 225 . . . Decoding 2872 | . . . . . . . . . . . . 1063 205 322 60 192 657 266 73 34 . . . Machine Analysis 985 | . . . . . . . . . 78 137 19 . . 290 60 192 209 . . . . . . Robot Analysis Total . | . . . . . . . . . . . . . . . . . . . . . . . . Derelict Logs Recovered 4 | . . . . . . . . . . 2 . . 2 . . . . . . . . . . Drone Launches . | . . . . . . . . . . . . . . . . . . . . . . . . Drone Recoveries . | . . . . . . . . . . . . . . . . . . . . . . . . Decoded 0b10 Intel 24 | . . . . . . . . . . . . . . 4 1 5 11 1 1 1 . . . Traps 14 | . . . . . . . . . . . . . . 2 . 2 9 . . 1 . . . Emergency Access 4 | . . . . . . . . . . . . . . . . 2 2 . . . . . . Garrisons 2 | . . . . . . . . . . . . . . 2 . . . . . . . . . Exits 4 | . . . . . . . . . . . . . . . 1 1 . 1 1 . . . . Exploration | -11 -10 -9 -9 -8 -7 -7 -7 -7 -5 -5 -5 -5 -4 -4 -4 -4 -4 -4 -4 -4 -3 -3 -3 ------------- Run | Yrd Mat Mat Min Mat Fac Sto Rec Scr Fac Upp Upp War Pro Fac Was Fac Ext Cet Arc Hub Res Qua Sec Turns Passed 11940 | 88 1145 2210 761 1594 281 65 103 1131 114 137 88 1126 205 322 60 192 657 266 73 243 189 615 275 Spaces Moved 12679 | 55 539 1071 388 636 662 97 85 1447 300 430 239 1120 373 528 91 423 1093 205 116 572 391 1199 619 Core 403 | 15 . . . . . . . . . . . . . 115 85 67 1 . . 1 . 119 . Treads 2674 | 40 539 1071 388 636 . . . . . . . . . . . . . . . . . . . Legs 38 | . . . . . . . . . . . . . . . . . . . . . . . 38 Wheels . | . . . . . . . . . . . . . . . . . . . . . . . . Hover . | . . . . . . . . . . . . . . . . . . . . . . . . Flight 9552 | . . . . . 662 97 85 1447 300 430 239 1120 373 413 6 356 1092 205 116 571 391 1080 569 Fastest Speed 25 | 50 160 160 160 160 31 34 112 29 29 29 29 33 33 34 50 28 29 34 37 34 31 25 25 Average Speed 62 | 130 160 160 160 160 31 34 112 47 29 29 32 33 33 45 50 32 35 36 37 34 36 30 33 Slowest Speed 200 | 160 160 160 160 160 34 112 112 112 29 29 112 33 39 200 55 55 150 37 117 150 40 145 45 Overloaded Moves . | . . . . . . . . . . . . . . . . . . . . . . . . Propulsion Burnouts . | . . . . . . . . . . . . . . . . . . . . . . . . Robots Hopped 101 | . . . . . 9 . . . . 2 1 3 . 1 . 3 30 . . 26 14 7 5 Potential Cave-ins 11 | . . . . . . . . 6 . . . . . . . . . . . 2 . 3 . Cave-ins Triggered 1 | . . . 1 . . . . . . . . . . . . . . . . . . . . Teleports 2 | . . . . . . . . . . . . . . . . . . . . . . 2 . Spacefolds 5 | . . . . . . . . . . . . . . . . . . . . . . . 5 Exploration Rate (%) 56 | 3 96 84 95 67 23 28 19 93 13 58 44 90 49 19 70 9 96 76 91 71 16 92 53 Regions Visited 23 Branch Regions 14 Pre-discovered Areas 5 | . . . . . . . . 5 . . . . . . . . . . . . . . . Known Exits Taken 13 | . . . . . . 1 . . 1 1 1 1 1 . . 1 1 1 1 1 1 1 . Unknown Exits Taken 8 | 1 1 1 1 1 1 . 1 1 . . . . . . . . . . . . . . . Scrap Searched 18 | . . . 2 . . . . 11 . 2 1 . 2 . . . . . . . . . . Spaces Dug 109 | . . . . 10 1 10 3 10 6 5 . . 11 9 . 19 . . . 5 1 17 2 Terrain Destroyed 1665 | . . . 458 263 1 10 3 10 6 5 . . 11 77 . 40 . 1 1 597 2 17 163 Melee 74 | . . . . . 1 10 3 10 6 5 . . 11 9 . 4 . . . 5 . 8 2 Projectile 13 | . . . . . . . . . . . . . . . . . . 1 1 . 2 9 . AOE 1578 | . . . 458 263 . . . . . . . . . 68 . 36 . . . 592 . . 161 Terrain Rammed . | . . . . . . . . . . . . . . . . . . . . . . . . Walls Destroyed . | . . . . . . . . . . . . . . . . . . . . . . . . Machines Disabled . | . . . . . . . . . . . . . . . . . . . . . . . . Actions | -11 -10 -9 -9 -8 -7 -7 -7 -7 -5 -5 -5 -5 -4 -4 -4 -4 -4 -4 -4 -4 -3 -3 -3 --------- Run | Yrd Mat Mat Min Mat Fac Sto Rec Scr Fac Upp Upp War Pro Fac Was Fac Ext Cet Arc Hub Res Qua Sec Total 15629 | 72 670 1339 465 952 697 111 88 1864 316 432 247 1874 440 599 104 462 1330 382 141 582 422 1393 647 Wait 1982 | . 24 74 10 112 . 3 . 386 . . 4 745 54 28 9 9 226 144 20 9 33 92 . Move 12461 | 54 538 1070 387 635 643 96 84 1446 299 425 236 1114 372 526 90 416 1034 204 115 524 366 1185 602 Hop 89 | . . . . . 9 . . . . 2 1 2 . 1 . 3 28 . . 21 11 6 5 Pick Up 121 | 12 8 20 1 7 2 . 1 5 3 . 1 6 1 5 . 7 . 7 . 6 5 17 7 Fast Attach 47 | . 1 5 1 10 . . . 5 . . . . . 1 2 5 3 . . 1 . 8 5 Attach 106 | 6 2 5 . 5 9 1 . 2 5 . 4 4 1 6 1 7 . 7 1 7 4 21 8 Detach 23 | . 1 . . . 2 . . . . . . 1 . 5 1 1 . 1 . . . 10 1 Swap 40 | . 3 13 5 17 . . . . . . . . . 1 . 1 . . . . . . . Drop 114 | . 6 24 4 20 11 . . 3 2 . 1 2 1 8 1 4 1 4 1 2 1 14 4 Fire 463 | . 87 128 57 146 . . . 2 . . . . . 3 . 3 . 10 3 1 2 14 7 Melee 148 | . . . . . 21 11 3 15 7 5 . . 11 15 . 6 5 5 1 9 . 26 8 Ram . | . . . . . . . . . . . . . . . . . . . . . . . . Kick . | . . . . . . . . . . . . . . . . . . . . . . . . Crush . | . . . . . . . . . . . . . . . . . . . . . . . . Escape Stasis 19 | . . . . . . . . . . . . . . . . . 17 . . 2 . . . Rewire 16 | . . . . . . . . . . . . . . . . . 16 . . . . . . Trap . | . . . . . . . . . . . . . . . . . . . . . . . . Miscellaneous . | . . . . . . . . . . . . . . . . . . . . . . . . Route ------- -11/Scrapyard -10/Materials (discovered 4 exits: *Mat x3 / [*Min]) -9/Materials (discovered 4 exits: *Mat x3 / [*Min]) -9/Mines (discovered 2 exits: *Mat x2) -8/Materials -7/Factory (discovered 6 exits: Fac x4 / *Sto / [*Low]) -7/Storage -7/Recycling -7/Scraptown (discovered 2 exits: [*Fac x2]) -5/Factory (discovered 6 exits: Fac x4 / *Upp x2) -5/Upper Caves -5/Upper Caves (discovered 2 exits: *Fac / *War) -5/Warlord -4/Proximity Caves -4/Factory (discovered 2 exits: *Res x2) -4/Waste -4/Factory (discovered 2 exits: Res / *Ext) -4/Extension (discovered 3 exits: *Res x2 / *Cet) -4/Cetus -4/Archives (discovered 3 exits: *Res / *Hub x2) -4/Hub_04(d) (discovered 4 exits: *Res x4) -3/Research (discovered 2 exits: *Qua x2) -3/Quarantine (discovered 3 exits: *Res / *Sec / [*Frg]) -3/Section 7 History --------- Turn | Location | Event 5 | -11/Scrapyard | Discovered new exit (range 15) 89 | -11/Scrapyard | Entered Materials 268 | -10/Materials | Discovered new exit (range 12) 318 | -10/Materials | Build established: Mutant 405 | -10/Materials | Discovered new exit (range 6) 865 | -10/Materials | Discovered new exit (range 8) 998 | -10/Materials | Discovered new exit (range 5) 1234 | -10/Materials | Entered another Materials area 1234 | -9/Materials | Evolved 2 slots: Propulsion x1, Utility x1 1413 | -9/Materials | Lost 3 parts (1p1n1w) 1837 | -9/Materials | Discovered new exit (range 12) 2149 | -9/Materials | Discovered new exit (range 16) 2418 | -9/Materials | Build established: Scavenger-Mutant 2654 | -9/Materials | Discovered new exit (range 6) 3431 | -9/Materials | Discovered new exit (range 9) 3444 | -9/Materials | Entered Mines 3541 | -9/Mines | Build established: Mutant 3687 | -9/Mines | Received a Rocket Launcher from a helpful Derelict 3875 | -9/Mines | Discovered new exit (range 10) 3907 | -9/Mines | Crushed by falling debris 3981 | -9/Mines | Found the Drone Emporium 3985 | -9/Mines | Found Prototype Device 3985 | -9/Mines | Identified Thief Drone Bay 4148 | -9/Mines | Discovered new exit (range 6) 4205 | -9/Mines | Entered Materials 4205 | -8/Materials | Evolved 2 slots: Propulsion x1, Utility x1 4569 | -8/Materials | Build established: Scavenger-Mutant 4952 | -8/Materials | Destroyed 7 combat bots 4954 | -8/Materials | Lost 3 parts (2n1u) 5496 | -8/Materials | Discovered new exit (range 8) 5684 | -8/Materials | Core integrity fell below 50% 5799 | -8/Materials | Entered Factory 5799 | -7/Factory | Evolved 2 slots: Utility x2 5961 | -7/Factory | Discovered new exit (range 8) 5969 | -7/Factory | Identified exit to Factory 6073 | -7/Factory | Discovered new exit (range 14) 6080 | -7/Factory | Entered Storage 6091 | -7/Storage | Identified exit to Recycling 6143 | -7/Storage | Used back door to open Recycling access 6145 | -7/Storage | Entered Recycling 6221 | -7/Recycling | Scanned before Scraplab entrance 6237 | -7/Recycling | Entered Scraplab 6246 | -7/Recycling | Discovered new exit (range 2) 6248 | -7/Recycling | Entered Scraptown 6271 | -7/Scraptown | Heard Great Nut preacher, LISTEN AND RECITE! 6307 | -7/Scraptown | Build established: Hacker-Mutant 6354 | -7/Scraptown | Learned location of Extension (-4) 6540 | -7/Scraptown | Visited Comm Corps 6580 | -7/Scraptown | Visited Bundlers 6629 | -7/Scraptown | Visited Spacefarers 6642 | -7/Scraptown | Visited Symbiants 6695 | -7/Scraptown | Discovered new exit (range 7) 6718 | -7/Scraptown | Visited Awakened 6721 | -7/Scraptown | Visited Cave Peace 6728 | -7/Scraptown | Visited The Evicted 6737 | -7/Scraptown | Visited UFD Registry 6737 | -7/Scraptown | Registered with UFD as "Protohead" 6743 | -7/Scraptown | Visited Abandonware Association 6745 | -7/Scraptown | Learned abandonware demo "OVRCLOCK.EXE" 6746 | -7/Scraptown | Learned abandonware demo "MELTYB.EXE" 6746 | -7/Scraptown | Learned abandonware demo "REBOOT5.EXE" 6753 | -7/Scraptown | Visited Science Guys 6763 | -7/Scraptown | Visited DA-N13 Charitable Foundation 6764 | -7/Scraptown | Found DCF Scrap (30 items) 6813 | -7/Scraptown | Visited LU-1G1's Boring Crew 6824 | -7/Scraptown | Visited Scrap Suit Storage 6828 | -7/Scraptown | Visited Scrapoid Research Area 6832 | -7/Scraptown | Visited Cartography Club 6838 | -7/Scraptown | Found Surveybot 17 Chip 6856 | -7/Scraptown | Found Deep Structural Scanner 6860 | -7/Scraptown | Learned location of Storage (-7) 6860 | -7/Scraptown | Learned location of Proximity Caves (-6) 6860 | -7/Scraptown | Learned location of Armory (-4) 6860 | -7/Scraptown | Learned 16 Materials zone layouts 6860 | -7/Scraptown | Learned 12 Materials zone layouts 6860 | -7/Scraptown | Learned 12 Factory zone layouts 6860 | -7/Scraptown | Learned 20 Factory zone layouts 6860 | -7/Scraptown | Learned 4 Access zone layouts 6860 | -7/Scraptown | Learned 8 Lower Caves zone layouts 6860 | -7/Scraptown | Learned 16 Upper Caves zone layouts 6860 | -7/Scraptown | Learned 8 Proximity Caves zone layouts 6860 | -7/Scraptown | Learned 16 Proximity Caves zone layouts 6860 | -7/Scraptown | Learned 4 Armory zone layouts 6860 | -7/Scraptown | Learned location of 2 exits from Factory 6860 | -7/Scraptown | Learned location of 3 exits from Factory 6860 | -7/Scraptown | Learned location of 3 exits from Upper Caves 6876 | -7/Scraptown | Visited Science Testing Area 6881 | -7/Scraptown | Visited Curators Association 6896 | -7/Scraptown | Build established: Hacker-Sprinter 6909 | -7/Scraptown | Met Optimus 6909 | -7/Scraptown | Accepted into 0bPrime 7309 | -7/Scraptown | Civil war broke out across Scraptown 7322 | -7/Scraptown | Found Deploy-a-Sentry 7371 | -7/Scraptown | Discovered new exit (range 17) 7379 | -7/Scraptown | Entered Factory 7379 | -5/Factory | Evolved 4 slots: Propulsion x1, Utility x3 7380 | -5/Factory | Identified exit to Factory 7380 | -5/Factory | Identified exit to Upper Caves 7493 | -5/Factory | Entered Upper Caves 7494 | -5/Upper Caves | Identified exit to Upper Caves 7589 | -5/Upper Caves | Learned Factory emergency access door positions 7630 | -5/Upper Caves | Entered another Upper Caves area 7631 | -5/Upper Caves | Identified exit to Warlord 7632 | -5/Upper Caves | Attracted the attention of an 0b10 checkpoint 7639 | -5/Upper Caves | Attracted the attention of an 0b10 outpost 7642 | -5/Upper Caves | DAS Turret deployed 7689 | -5/Upper Caves | Lost 4 parts (1p2n1w) 7718 | -5/Upper Caves | Entered Warlord 7911 | -5/Warlord | Warlord's base attacked by MAIN.C 7919 | -5/Warlord | Found Prototype Piercing Weapon 7920 | -5/Warlord | Identified Vortex Lance 7921 | -5/Warlord | Found Prototype Energy Cannon 7922 | -5/Warlord | Identified Vortex Cannon 7925 | -5/Warlord | Found Prototype Energy Gun 7926 | -5/Warlord | Identified Vortex Shotgun 8261 | -5/Warlord | Warlord forces counterattacked 8379 | -5/Warlord | Rebuked by Warlord 8586 | -5/Warlord | Warlord base infiltrated, sounded retreat 8761 | -5/Warlord | Spotted Executioner 8805 | -5/Warlord | Spotted Executioner 8823 | -5/Warlord | Discovered new exit (range 15) 8842 | -5/Warlord | Identified exit to Proximity Caves 8844 | -5/Warlord | Entered Proximity Caves 8849 | -4/Proximity Caves | Learned location of 1 exit from Proximity Caves 8852 | -4/Proximity Caves | Lost 6 allies 8855 | -4/Proximity Caves | Spotted B-86 Titan 8901 | -4/Proximity Caves | Learned Research terminal intel 9049 | -4/Proximity Caves | Entered Factory 9049 | -4/Factory | Evolved 2 slots: Propulsion x1, Utility x1 9050 | -4/Factory | Identified exit to Research 9177 | -4/Factory | Build established: Hacker-Mutant 9213 | -4/Factory | Lost 3 parts (2n1u) 9286 | -4/Factory | Discovered exit to Research (range 13) 9371 | -4/Factory | Sucked down chute 9371 | -4/Factory | Entered Waste 9385 | -4/Waste | Spotted C-40 Crusher 9386 | -4/Waste | EMP discharged 9386 | -4/Waste | System corruption reached 10% 9391 | -4/Waste | Spotted C-40 Crusher 9398 | -4/Waste | Spotted C-40 Crusher 9413 | -4/Waste | Spotted C-40 Crusher 9413 | -4/Waste | Spotted C-40 Crusher 9419 | -4/Waste | Spotted C-40 Crusher 9421 | -4/Waste | Identified exit to Factory 9426 | -4/Waste | Crushed by Compactor (1 part destroyed, 1 dropped) 9431 | -4/Waste | Entered Factory 9532 | -4/Factory | Discovered new exit (range 6) 9569 | -4/Factory | Identified exit to Extension 9623 | -4/Factory | Entered Extension 9736 | -4/Extension | Rescued a captive Derelict 9741 | -4/Extension | Spotted B-86 Titan 9822 | -4/Extension | Discovered exit to Research (range 18) 9823 | -4/Extension | Spotted B-86 Titan 9863 | -4/Extension | Lost 3 parts (1p1u1w) 9876 | -4/Extension | Discovered new exit (range 16) 9877 | -4/Extension | Discovered exit to Research (range 14) 9951 | -4/Extension | Rescued a captive Derelict 9952 | -4/Extension | Rescued a captive Derelict 10013 | -4/Extension | Rescued a captive Derelict 10013 | -4/Extension | Rescued a captive Derelict 10063 | -4/Extension | Rescued a captive Derelict 10070 | -4/Extension | Rescued a captive Derelict 10071 | -4/Extension | Rescued A7 10262 | -4/Extension | Identified exit to Cetus 10280 | -4/Extension | Entered Cetus 10280 | -4/Cetus | Accompanied by 6 allies (A7) 10285 | -4/Cetus | Acquired a Cetus Manufacturing Module code from A7 10287 | -4/Cetus | Spotted Cetus Guard 10287 | -4/Cetus | Spotted Cetus Guard 10293 | -4/Cetus | Destroyed Cetus Guard 10295 | -4/Cetus | Spotted Cetus Guard 10295 | -4/Cetus | Destroyed Cetus Guard 10295 | -4/Cetus | Spotted Cetus Guard 10303 | -4/Cetus | Core integrity fell below 50% 10316 | -4/Cetus | Allies destroyed Cetus Guard 10353 | -4/Cetus | Started Cetus Manufacturing Module 10378 | -4/Cetus | Manufactured an Enhanced Grunt 10386 | -4/Cetus | Escorted A7 to Cetus Mainframe 10400 | -4/Cetus | Found a strange terminal 10403 | -4/Cetus | Manufactured an Enhanced Grunt 10408 | -4/Cetus | Identified exit to Archives 10428 | -4/Cetus | Manufactured an Enhanced Grunt 10453 | -4/Cetus | Manufactured an Enhanced Grunt 10478 | -4/Cetus | Manufactured an Enhanced Grunt 10546 | -4/Cetus | Entered Archives 10546 | -4/Archives | Accompanied by 9 allies (A7) 10551 | -4/Archives | Received a hacking code to weaken MAIN.C 10551 | -4/Archives | Met Zhirov 10554 | -4/Archives | Identified exit to Hub_04(d) 10555 | -4/Archives | Unable to access archive contents 10557 | -4/Archives | Reinforcements dispatched to Archives 10558 | -4/Archives | Unable to access archive contents 10563 | -4/Archives | Discovered exit to Hub_04(d) (range 18) 10565 | -4/Archives | Read partially decrypted archive contents 10565 | -4/Archives | Read partially decrypted archive contents 10575 | -4/Archives | Zhirov warped through subspace 10593 | -4/Archives | Zhirov detonated Archives 10603 | -4/Archives | Discovered exit to Research (range 16) 10619 | -4/Archives | Entered Hub_04(d) 10624 | -4/Hub_04(d) | Lost 8 allies 10744 | -4/Hub_04(d) | Network Hub disabled 10749 | -4/Hub_04(d) | Network Hub disabled 10777 | -4/Hub_04(d) | Spotted Lightning 10779 | -4/Hub_04(d) | Spotted Lightning 10780 | -4/Hub_04(d) | Spotted Lightning 10785 | -4/Hub_04(d) | Spotted Lightning 10786 | -4/Hub_04(d) | Spotted Lightning 10803 | -4/Hub_04(d) | Network Hub disabled 10803 | -4/Hub_04(d) | Garrison activated, responded to threat 10834 | -4/Hub_04(d) | Spotted Lightning 10834 | -4/Hub_04(d) | Spotted Lightning 10835 | -4/Hub_04(d) | Spotted Lightning 10836 | -4/Hub_04(d) | System corruption reached 30% 10838 | -4/Hub_04(d) | Spotted Lightning 10857 | -4/Hub_04(d) | Core integrity fell below 20% 10858 | -4/Hub_04(d) | Network Hub disabled 10862 | -4/Hub_04(d) | Entered Research 10862 | -3/Research | Evolved 2 slots: Power x1, Propulsion x1 10863 | -3/Research | Loaded intel: 22 terminal locations 10869 | -3/Research | Identified exit to Quarantine 10889 | -3/Research | Lost 7 parts (1p1n4u1w) 11051 | -3/Research | Entered Quarantine 11065 | -3/Quarantine | Spotted Alpha 7 11080 | -3/Quarantine | Lost 5 parts (1p3n1u) 11105 | -3/Quarantine | Found Alien Launcher 11124 | -3/Quarantine | Found Alien Artifact 11125 | -3/Quarantine | Identified Phase Redirector 11144 | -3/Quarantine | Lost 3 parts (2n1u) 11153 | -3/Quarantine | Found Alien Artifact 11154 | -3/Quarantine | Identified Phase Armor 11206 | -3/Quarantine | Found Alien Slashing Weapon 11228 | -3/Quarantine | Identified Sigix Broadsword 11274 | -3/Quarantine | Found Alien Artifact 11287 | -3/Quarantine | Found Alien Artifact 11288 | -3/Quarantine | Identified Transdimensional Reconstructor 11288 | -3/Quarantine | Warped through subspace 11289 | -3/Quarantine | Identified Dimensional Node Initializer 11289 | -3/Quarantine | Initialized slip node 11344 | -3/Quarantine | Discovered new exit (range 11) 11346 | -3/Quarantine | Identified exit to Research 11352 | -3/Quarantine | Found Alien Artifact 11353 | -3/Quarantine | Identified Subatomic Replicator 11353 | -3/Quarantine | Used Subatomic Replicator to replicate Adv. Surge Thruster 11434 | -3/Quarantine | Identified Sigix Terminator 11436 | -3/Quarantine | Found Alien Energy Cannon 11437 | -3/Quarantine | Identified Core Cannon 11486 | -3/Quarantine | Found Alien Artifact 11486 | -3/Quarantine | Identified Hpw. Transdimensional Reconstructor 11486 | -3/Quarantine | Warped through subspace to slip node 11591 | -3/Quarantine | Found Alien Reactor 11591 | -3/Quarantine | Identified Matter Drive 11648 | -3/Quarantine | Spotted Fortress 11651 | -3/Quarantine | Core integrity fell below 50% 11665 | -3/Quarantine | Discovered new exit (range 6) 11665 | -3/Quarantine | Discovered new exit (range 7) 11666 | -3/Quarantine | Identified exit to Section 7 11666 | -3/Quarantine | Entered Section 7 11690 | -3/Section 7 | Found Alien Artifact 11691 | -3/Section 7 | Identified Integrated Mediator 11691 | -3/Section 7 | Installed Integrated Mediator, increased core attachment efficiency 11748 | -3/Section 7 | Found Alien Artifact 11748 | -3/Section 7 | Identified Core Reset Matrix 11748 | -3/Section 7 | Used Core Reset Matrix 11752 | -3/Section 7 | Detected hypermatrix surge 11752 | -3/Section 7 | Sensed 16 artifacts in vicinity 11763 | -3/Section 7 | Found Spacefold Activator 11769 | -3/Section 7 | Spotted S7 Guard 11773 | -3/Section 7 | Found Core Physics Calibrator 11777 | -3/Section 7 | Spotted B-86 Titan 11783 | -3/Section 7 | Spotted Alpha 7 11788 | -3/Section 7 | Spotted Alpha 7 11793 | -3/Section 7 | Core integrity fell below 20% 11797 | -3/Section 7 | Spotted B-99 Colossus 11845 | -3/Section 7 | Found LRC Armor 11846 | -3/Section 7 | Found LRC Inertial Stabilizer 11846 | -3/Section 7 | Installed LRC Inertial Stabilizer, increased mass support (+10) 11848 | -3/Section 7 | Installed LRC Armor, increased core integrity (+250) 11904 | -3/Section 7 | Integrated with Sigix Exoskeleton 11914 | -3/Section 7 | Fired Sigix Terminator 11914 | -3/Section 7 | Destroyed Executioner 11941 | -3/Section 7 | Destroyed by Alpha 7 with Multirail Last Messages --------------- Destroyed Unknown Energy Gun. Destroyed Unknown Hover Unit. P-80 Master destroyed. Destroyed Unknown Energy Gun. P-80 Master destroyed. Destroyed Unknown Hover Unit. P-80 Master destroyed. Acquired Sigix Sheargun. Quantum Shear penetrates P-80 Master. Destroyed Unknown Hover Unit. Quantum Shear penetrates P-80 Master. F<, UXD904APJ5PVX|V1ZXAW Quantum Shear penetrates P-80 Master. Destroyed Unknown Hover Unit. Quantum Shear penetrates P-80 Master. P-80 Master destroyed. Acquired 45 matter. Penetrated by Slug. Slug penetrates Machine. Penetrated by Slug. Map ----- +----------------------------------------------------+ | ?????????????????????????????????????????????????? | | ?????????????????????????????????????????????????? | | ?????????????????????????????????????????????????? | | ?????????????????????????????????????????????????? | | ?????????????????????????????????????????????????? | | ?????????????????????????????????????????????????? | | ?????????????????????????????????????????????????? | | ?????????????????????????????????????????????????? | | ????????????????????????? ???????????????????????? | | ???????????????????? ??????????????????? | | ????????????????? ???????????????? | | ???????????????? ??????????????? | | ?????????????? ????????????? | | ????????????? ???????????? | | ???? ?????? ??????????? | | ??? ????? ?????????? | | ?? ???? ?????????? | | "" ??? ???????]? | | ""?" ???????? | | ? ???????? | | "? ???????? | | $$ ??????? | | $ ??????? | | ??????? | | "??? ??????? | | ""???" X ?????? | | """""" ?????? | | "?????? | | " ????? | | " ????? | | " ????? | | " ????? | | " ????? | | " ???? | | 7 " ????? | | 7 " #???? | | """"""" " #???? | | """"""""""""" ;;; "##???? | | """"""""""""" ; ; "###??? | | ##############""""""" ;;;;;;;;"""""""""""""####??? | | ????????######## " " ######??? | | ????????########### " " #########??? | | ???????############## " " ###########??? | | ##?????################" !!| "# ############?? | | ""?????################""=%! "###############??? | | ""#????################""*![ """###############??? | | "#????################"" [ ""###############??? | | ""#???#################" "###############??? | | ""#????################ "###############??? | | ""#????################" "##############???? | +----------------------------------------------------+ Best States ------------- Heat Dissipation 106 Energy Generation 41 Energy Capacity 315 Matter Stores 300 Matter Capacity 300 Sight Range 16 Robot Scan Range 16 Terrain Scan Density 1210 Armor Coverage 675 Resistance: KI 50 Resistance: TH 50 Resistance: EX 50 Resistance: EM 50 Resistance: I 50 Resistance: S 50 Resistance: P 50 Weapon Shielding 33 Evasion (%) 76 Launcher Accuracy 20 Recoil Reduction 4 Offensive Hacking 41 Defensive Hacking 10 Item Schematics ----------------- None Robot Schematics ------------------ None Fabricated ------------ Nothing Repaired ---------- Nothing Alien Tech Used ----------------- Phase Redirector Phase Armor Sigix Broadsword Transdimensional Reconstructor Dimensional Node Initializer Subatomic Replicator Sigix Terminator Core Cannon High-powered Transdimensional Reconstructor Matter Drive Integrated Mediator Core Reset Matrix Spacefold Activator Core Physics Calibrator LRC Inertial Stabilizer LRC Armor Sigix Exoskeleton Sigix Sheargun Achievements -------------- 404 Artifact Hunter Short-term Sacrifices Challenges ------------ None Game ------ Seed SigixCompanionOptics Manual? 0 Play Time 02:43:06 Cumulative 218.8 hours Start 2025.09.15 @ 21:11:50 End 2025.09.16 @ 10:46:56 Sessions 3 Manual Loads 0 Difficulty Rogue Special Mode None Game No. 191 Rogue 191 Adventurer 0 Explorer 0 Win Type - Total 12 Types 6/0/2/2/1/0/0/0/0/1 Lore% 93 Gallery% 85 Achievement% 71 Wizard Run 0 Options --------- Layout 1 ASCII 0 Keyboard 0 Movement Numpad Keybinds 0 Fullscreen 1 Font 24/Proggy Map View 50x35 Zoom Use 0% Tactical HUD 0 Map Filters NONE Filters NONE Steam 1 RUN: 73d10ea4-826d-44e0-9e89-422e589c1517